Cogmind - Beta 16 --- EXPLORER MODE // 2025.12.04 @ 09:54:36 Player: K.K.Y. Result: Destroyed by as-72032 with Assembled Blade Performance ------------- Evolutions (0) 0 Regions Visited (2) 400 Robots Destroyed (37) 185 Value Destroyed (550) 550 Prototype IDs (2) 40 Alien Tech Used (0) 0 Bonus (0) 0 TOTAL SCORE: 1175 Bonus ------- None Cogmind --------- Core Integrity 0/250 Matter 277/300 Energy 100/100 System Corruption 0% Temperature Cool (0) Movement Core (50) Location -10/Mines Parts ------- > --- POWER (1) -------- (None) > --- PROPULSION (2) --- (None) > --- UTILITY (3) ------ (None) > --- WEAPON (2) ------- Assault Rifle > --- INVENTORY (5) ---- Light Treads Light Treads High-capacity Storage Unit Structural Scanner Mining Laser Peak State ------------ > --- POWER ------------ Light Nuclear Core > --- PROPULSION ------- Light Treads Light Treads > --- UTILITY ---------- Improved Terrain Scanner Seismic Detector > --- WEAPON ----------- Light EM Pulse Cannon Assault Rifle > --- INVENTORY -------- Ion Engine Large Storage Unit Mining Laser [Rating: 12] Favorites ----------- Power Light Nuclear Core Engine Ion Engine Power Core Light Nuclear Core Propulsion Light Treads Treads Light Treads Hover Unit Hover Unit Flight Unit Flight Unit Utility Improved Terrain Scanner Device Improved Terrain Scanner Weapon Assault Rifle Energy Cannon Light EM Pulse Cannon Ballistic Gun Assault Rifle Special Weapon Mining Laser Build | -11 -10 -10 ------- Run | Yrd Mat Min Slots Evolved 1 | . 1 . Power . | . . . Propulsion . | . . . Utility 1 | . 1 . Weapon . | . . . Parts Attached 22 | 5 7 10 Power 5 | 1 1 3 Engine 4 | 1 . 3 Core 1 | . 1 . Reactor . | . . . Propulsion 7 | 2 2 3 Treads 2 | 2 . . Leg . | . . . Wheel . | . . . Hover 2 | . 2 . Flight 3 | . . 3 Utility 3 | . 2 1 Device 3 | . 2 1 Storage . | . . . Processor . | . . . Hackware . | . . . Protection . | . . . Artifact . | . . . Weapon 7 | 2 2 3 Energy Gun . | . . . Energy Cannon 1 | . 1 . Ballistic Gun 4 | 2 . 2 Ballistic Cannon . | . . . Launcher . | . . . Special Weapon 2 | . 1 1 Impact Weapon . | . . . Slashing Weapon . | . . . Piercing Weapon . | . . . Special Melee Weapon . | . . . Unidentified Prototypes . | . . . Parts Lost 11 | . 1 10 Power 2 | . . 2 Propulsion 4 | . . 4 Utility 1 | . . 1 Weapon 4 | . 1 3 Highest Loss Streak 7 | . 1 7 To Critical Strikes . | . . . Average Backups 3 | 1 3 5 Power . | . . . Propulsion 1 | . 1 2 Utility 1 | . 1 2 Weapon . | . 1 1 Tool/Special . | . . . Unused Backups 7 | . 3 4 Power . | . . . Propulsion 3 | . 1 2 Utility 3 | . 1 2 Weapon 1 | . 1 . Tool/Special . | . . . Average Slot Usage (%) 81 | . 82 79 Engine 4 | . 3 8 Core 7 | . 8 2 Treads 14 | . 19 . Hover 7 | . 5 13 Flight 2 | . . 7 Device 24 | . 24 23 Energy Cannon 3 | . 4 . Ballistic Gun 14 | . 15 14 Special Weapon 2 | . . 8 Peak Build Rating 12 | 5 12 11 Average Rating 8 | 4 10 8 On Entrance 5 | . 5 11 Avg Prop Armor Cover (%) . | . . . Naked Turns 12 | . . 12 Heaviest Build 13 | 9 13 10 Greatest Support 40 | 40 40 12 Greatest Overweight (x) 2 | . . 2 Average Overweight (x) . | . . . Largest Inventory Capacity 5 | 5 5 5 Average Capacity 5 | 5 5 5 Most Carried 5 | 5 5 5 Average Carried 3 | 1 3 5 Final Capacity 5 | 5 5 5 Final Carried 5 | 3 5 5 Class Distribution -------------------- 67% | Hacker-Mutant 32% | Scavenger-Mutant Dominant Class ---------------- Hacker-Mutant | -10/Materials Scavenger-Mutant | -10/Mines Resources | -11 -10 -10 ----------- Run | Yrd Mat Min Matter Collected 839 | 375 273 191 Remotely . | . . . Salvage Created 951 | 241 533 177 Parts 73 | 24 31 18 Haulers Intercepted 2 | . 2 . Recyclers Shooed 1 | . . 1 Parts Field Recycled . | . . . Retrieved Matter . | . . . Parts Self-Destructed . | . . . Prevented . | . . . Parts Restored . | . . . Kills | -11 -10 -10 ------- Run | Yrd Mat Min Combat Hostiles Destroyed 20 | . 9 11 Guns 16 | . 6 10 Cannons 4 | . 3 1 Classes Destroyed 10 | 2 5 3 Worker 3 | . 2 1 Builder 1 | . . 1 Tunneler 10 | 9 . 1 Hauler 2 | . 2 . Recycler 1 | 1 . . Watcher 2 | . 2 . Swarmer 10 | . 2 8 Grunt 7 | . 7 . Demolisher 1 | . . 1 Assembled 2 | . . 2 Best Kill Streak 4 | 3 2 4 Combat Bots Only 4 | . 2 4 Max Kills in Single Turn 1 | 1 1 1 Gunslinging . | . . . Exploded . | . . . Melee . | . . . Uniques/NPCs Destroyed . | . . . Combat | -11 -10 -10 -------- Run | Yrd Mat Min Hostile Shots Fired 116 | . 46 70 Missed 35 | . 14 21 Hits 81 | . 32 49 Melee 13 | . . 13 Projectile 68 | . 32 36 AOE 6 | . . 6 Part Disruptions 1 | . . 1 Damage Taken 859 | . 269 590 Core 261 | . 48 213 Absorbed by Shields . | . . . Ignored by Resistances 522 | . 170 352 Core Remaining (%) 100 | 100 . . Volleys Fired 130 | 22 53 55 Largest 2 | 2 2 2 Hottest 120 | 40 76 120 Shots Fired 195 | 44 78 73 Gun 178 | 44 67 67 Cannon 11 | . 11 . Launcher . | . . . Special 6 | . . 6 Kinetic 178 | 44 67 67 Thermal 6 | . . 6 Explosive . | . . . Electromagnetic 11 | . 11 . Robot Hit Streak 20 | 20 17 19 Robot Miss Streak 2 | 1 1 2 Penetration Max . | . . . Secondary Targets . | . . . Shots Hit Robots 155 | 36 67 52 Core Hits 57 | 11 24 22 Critical Kills 1 | 1 . . Critical Parts Destroyed 2 | . 2 . Critical Strikes 3 | 1 2 . Destroy 3 | 1 2 . Melee Attacks . | . . . Impact . | . . . Slashing . | . . . Piercing . | . . . Sneak Attacks . | . . . Combat Hostiles . | . . . Follow-up Attacks . | . . . Damage Inflicted 2087 | 464 1023 600 Guns 1703 | 464 721 518 Cannons 254 | . 254 . Explosions 48 | . 48 . Melee . | . . . Ramming 10 | . . 10 Kinetic 1703 | 464 721 518 Thermal 120 | . 48 72 Explosive . | . . . Electromagnetic 254 | . 254 . Impact . | . . . Slashing . | . . . Piercing . | . . . Highest Corruption . | . . . Average Corruption . | . . . Corruption Purged . | . . . Corruption Blocked . | . . . Overload Shots . | . . . Overflow Damage 10 | . 10 . Projectiles 10 | . 10 . Explosions . | . . . Melee . | . . . Knockbacks . | . . . Impact . | . . . Kinetic . | . . . Secondary . | . . . Self-Inflicted Damage 5 | . . 5 Shots . | . . . Rammed 1 | . . 1 Targets Rammed 1 | . . 1 Kicked . | . . . Crushed . | . . . Highest Temperature 54 | 6 54 50 Average Temperature 16 | 6 15 16 Received Heat Transfer 430 | . 210 220 Siege Activations . | . . . Martial Activations . | . . . Shielding Activations . | . . . Robots Disrupted . | . . . Combat Hostiles . | . . . Robots Corrupted . | . . . Combat Hostiles . | . . . Parts Fried . | . . . Impact Corruptions . | . . . Robots Melted . | . . . Combat Hostiles . | . . . Parts Melted . | . . . Heat Transferred 200 | . 50 150 Parts Sabotaged . | . . . Parts Stolen . | . . . Parts Stripped . | . . . Power Chain Reactions 1 | . 1 . Alert | -11 -10 -10 ------- Run | Yrd Mat Min Maximum Alert Level . | . . . Low Security (%) 100 | 100 100 100 Level 1 . | . . . Level 2 . | . . . Level 3 . | . . . Level 4 . | . . . Level 5 . | . . . High Security . | . . . Max Security . | . . . Peak Influence 90 | 10 35 90 Initial . | . . . Average 8 | 1 5 21 Influence Increases 580 | 50 293 237 Destroy 0b10 Robot/C 360 | . 180 180 Destroy 0b10 Robot/NC 95 | 50 30 15 Destroy Leader 98 | . 58 40 Successful Hack 21 | . 21 . Destroy Structure 6 | . 4 2 Influence Decreases 580 | 50 293 237 Time Decay 511 | 50 284 177 Lost Part 69 | . 9 60 Squads Dispatched 1 | . 1 . Investigation 1 | . 1 . Extermination . | . . . Reinforcement . | . . . Assault . | . . . Garrison . | . . . Intercept . | . . . Searches Triggered . | . . . Construction Impeded . | . . . Haulers Reinforced . | . . . Active Scanning Responses . | . . . Cargo Convoy Interrupts . | . . . Stealth | -11 -10 -10 --------- Run | Yrd Mat Min Distress Signals 1 | . 1 . Communications Jammed . | . . . Distress Signals . | . . . Times Spotted 37 | . 17 20 Peak Tracking Total 8 | . 2 8 Tactical Retreats 1 | . . 1 Traps | -11 -10 -10 ------- Run | Yrd Mat Min Traps Triggered 1 | . 1 . Indirectly . | . . . Trap Hack Attempts . | . . . Triggered . | . . . Disarmed . | . . . Reprogrammed . | . . . Reused . | . . . Traps Extracted . | . . . Installed . | . . . Triggered . | . . . Machines | -11 -10 -10 ---------- Run | Yrd Mat Min Machines Disabled . | . . . Max in Single Turn . | . . . Machines Repaired . | . . . Machines Dismantled . | . . . Machines Sabotaged . | . . . Overloaded Fab Kills . | . . . Hacking | -11 -10 -10 --------- Run | Yrd Mat Min Machines Accessed 7 | . 7 . Terminals 5 | . 5 . Fabricators . | . . . Repair Stations . | . . . Recycling Units 2 | . 2 . Scanalyzers . | . . . Garrison Access . | . . . Total Hacks 12 | . 12 . Successful 9 | . 9 . Failed 3 | . 3 . Catastrophic . | . . . Database Lockouts . | . . . Manual 7 | . 7 . Terminals 9 | . 9 . Fabricators . | . . . Repair Stations . | . . . Recycling Units 3 | . 3 . Scanalyzers . | . . . Garrison Access . | . . . Terminal Hacks 2 | . 2 . Robot Analysis 1 | . 1 . Prototype ID Bank 1 | . 1 . Fabricator Hacks . | . . . Repair Station Hacks . | . . . Recycling Unit Hacks 2 | . 2 . Retrieve Components 2 | . 2 . Scanalyzer . | . . . Garrison Access Hacks . | . . . Unauthorized Hacks 5 | . 5 . Terminals 5 | . 5 . Botnet 5 | . 5 . Fabricators . | . . . Repair Stations . | . . . Recycling Units . | . . . Scanalyzers . | . . . Garrison Access . | . . . Data Cores Recovered . | . . . Used . | . . . Hacking Detections 5 | . 5 . Full Trace Events 1 | . 1 . Feedback Events . | . . . Feedback Blocked . | . . . Robot Schematics Acquired . | . . . Robots Built . | . . . Authchips . | . . . Time . | . . . Total Robot Build Rating . | . . . Part Schematics Acquired . | . . . Parts Built . | . . . Authchips . | . . . Time . | . . . Total Part Build Rating . | . . . Part Studies Acquired . | . . . Parts Repaired . | . . . Time . | . . . Parts Recycled . | . . . Recycled Matter . | . . . Retrieved Matter . | . . . Retrieved Components 3 | . 3 . Parts Scanalyzed . | . . . Part Schematics Acquired . | . . . Parts Damaged . | . . . Bothacking | -11 -10 -10 ------------ Run | Yrd Mat Min Used RIF Installer . | . . . Robots Hacked . | . . . Non-combat . | . . . Combat . | . . . Robot Hacks Applied . | . . . Relay Couplers Released . | . . . Fabnet Peak Effective % . | . . . Robots Rewired . | . . . Allies Hacked . | . . . Hacks Repelled . | . . . Allies | -11 -10 -10 -------- Run | Yrd Mat Min Total Allies . | . . . Largest Group . | . . . Highest-Rated Group . | . . . Highest-Rated Ally . | . . . Total Orders . | . . . Ally Attacks . | . . . Total Damage . | . . . Kills . | . . . Allies Corrupted . | . . . Allies Melted . | . . . Intel | -11 -10 -10 ------- Run | Yrd Mat Min Active Infowar (turns) 1449 | . 1074 375 Terrain 1385 | . 1073 312 Structural 246 | . . 246 Seismic 1312 | . 1074 238 Robot Analysis Total 1 | . 1 . Derelict Logs Recovered . | . . . Drone Launches . | . . . Drone Recoveries . | . . . Exploration | -11 -10 -10 ------------- Run | Yrd Mat Min Turns Passed 1799 | 314 1074 411 Spaces Moved 1404 | 160 803 441 Core 42 | 18 . 24 Treads 587 | 142 445 . Legs . | . . . Wheels . | . . . Hover 629 | . 358 271 Flight 146 | . . 146 Fastest Speed 37 | 50 56 37 Average Speed 97 | 147 113 51 Slowest Speed 200 | 160 160 200 Overloaded Moves . | . . . Propulsion Burnouts . | . . . Robots Hopped . | . . . Potential Cave-ins . | . . . Cave-ins Triggered . | . . . Exploration Rate (%) 57 | 7 96 69 Regions Visited 2 Branch Regions 1 Pre-discovered Areas . | . . . Known Exits Taken 2 | 1 1 . Unknown Exits Taken . | . . . Scrap Searched . | . . . Spaces Dug . | . . . Terrain Destroyed 5 | . 3 2 Melee . | . . . Projectile 2 | . . 2 AOE 3 | . 3 . Terrain Rammed . | . . . Walls Destroyed . | . . . Machines Disabled . | . . . Actions | -11 -10 -10 --------- Run | Yrd Mat Min Total 1633 | 194 891 548 Wait 40 | . 8 32 Move 1402 | 159 802 441 Hop . | . . . Pick Up 20 | 8 12 . Fast Attach 8 | . 1 7 Attach 7 | 5 2 . Detach . | . . . Swap 10 | . 5 5 Drop 15 | . 8 7 Fire 130 | 22 53 55 Melee . | . . . Ram 1 | . . 1 Kick . | . . . Crush . | . . . Escape Stasis . | . . . Rewire . | . . . Trap . | . . . Miscellaneous . | . . . Route ------- -11/Scrapyard -10/Materials (discovered 5 exits: *Mat x3 / *Min / *Sub) -10/Mines (discovered 2 exits: *Mat x2) History --------- Turn | Location | Event 10 | -11/Scrapyard | Identified exit to Materials 10 | -11/Scrapyard | Discovered exit to Materials (range 15) 315 | -11/Scrapyard | Entered Materials 315 | -10/Materials | Evolved 1 slot: Utility x1 337 | -10/Materials | Build established: Hacker-Mutant 709 | -10/Materials | Identified exit to Materials 709 | -10/Materials | Discovered exit to Materials (range 16) 1012 | -10/Materials | Discovered exit to Materials (range 8) 1219 | -10/Materials | Identified exit to Subcaves 1219 | -10/Materials | Discovered exit to Subcaves (range 13) 1327 | -10/Materials | Discovered exit to Materials (range 16) 1376 | -10/Materials | Identified exit to Mines 1376 | -10/Materials | Discovered exit to Mines (range 10) 1389 | -10/Materials | Entered Mines 1404 | -10/Mines | Met a Derelict bent on vengeance 1443 | -10/Mines | Discovered exit to Materials (range 9) 1447 | -10/Mines | Build established: Scavenger-Mutant 1602 | -10/Mines | Discovered exit to Materials (range 13) 1663 | -10/Mines | Assembled infested the area 1756 | -10/Mines | Core integrity fell below 50% 1771 | -10/Mines | Core integrity fell below 20% 1800 | -10/Mines | Destroyed by as-72032 with Assembled Blade Last Messages --------------- 01736_ Acquired 8 matter. 01736_ Acquired 55 matter. 01739_ The unstable cave ceiling collapses. 01747_ Flight Unit destroyed. 01754_ The unstable cave ceiling collapses. 01755_ Lgt. Assault Rifle destroyed. 01757_ The unstable cave ceiling collapses. 01758_ as-14848 destroyed. 01760_ Lgt. Assault Rifle destroyed. 01764_ Dropped Structural Scanner. 01765_ Acquired Mining Laser. 01770_ Mining Laser destroyed. 01770_ Lgt. Ion Engine destroyed. 01777_ Slammed into K-01 Serf. 01781_ K-01 Serf destroyed. 01782_ Acquired Hover Unit. 01785_ Acquired 10 matter. 01786_ Acquired Assault Rifle. 01791_ as-08256 destroyed. 01800_ Hover Unit destroyed. Map ----- +----------------------------------------------------+ | """ ###?#???????????????????### ##### #####? | | """ ###??????????????????????### ## ##? | | """ ##????#???????????????????### # # ### | | ##????????????########??????### # ## ### | | #######??????????############????### % # ## | | ########????????#### # #####????#### % ## | | ### #####?????#### ##?????### ### # ### | | ## #####???#### # # ######### ## ## | | ####??### # ######### ! # ### | | ## ###??## * # ## ##?? | | #### ###### ########## # ##?? | | ####### ####### ######## % #####?? | | ###?#### ######## ######### #######?# | | ????#### ########### ###????? | | ????#?## ##################### ##????? | | ??????## ###?????############# ##????? | | ?????### """ ########????????#### ##????# | | ?????### """ ################## ##????? | | ?????## """ ############ %* ##????? | | ??#??## *=% = ##????? | | ?????## = | ##???#? | | ?????## ######%###### ##????? | | ????### ## #######a######## ##????? | | ???#### #### ########a##################????? | | ???### #########?####a#####?############????? | | ???## #########?### !@ ##?????????????????? | | ???## ####????#??## %"""##???????#?????????? | | ???### #####??#?### """##?????????????????? | | ???#### #####????## """##?????????????????? | | ?###### ###??#?## ##???#?????#???????? | | ###### ##????## k ##?????????????????? | | ### ##????## < ##?????????????????? | | ## ##???### ##?????????????????? | | ###????##########?????????????????? | | ######????##########?????????????????? | | ######????????????????????????????????? | | ## ## ??????????? ???????????????????????? | | #### #### ????????????????????????????????????? | | ##### ####?????????????????????????????????????? | | ### ##???????????????????????????????????????? | | ##?? #???????????????????????????????????????? | | ??? ???????????????????????????????????????? | | ??? ??????????????????????????????????????? | | ???" ## ??????????????????????????????????????? | | ???" #### ?????????????????????????????????????? | | ???" ##### #???????????????????????????????????? | | ???? ???#####???????????????????????????????????? | | ???? ????####???????????????????????????????????? | | ????????????????????????????????????????????????? | | ????????????????????????????????????????????????? | +----------------------------------------------------+ Best States ------------- Heat Dissipation 25 Energy Generation 14 Energy Capacity 250 Matter Stores 300 Matter Capacity 300 Sight Range 16 Terrain Scan Range 16 Terrain Scan Density 10 Resistance: KI 35 Resistance: TH 35 Resistance: EX 35 Resistance: EM 35 Resistance: I 35 Resistance: S 35 Resistance: P 35 Evasion (%) 62 Recoil Reduction 2 Offensive Hacking 20 Item Schematics ----------------- None Robot Schematics ------------------ None Fabricated ------------ Nothing Repaired ---------- Nothing Studied --------- None Alien Tech Used ----------------- None Achievements -------------- None Challenges ------------ None Game ------ Seed ShadeExoskeletonTearclaws Manual? 0 Play Time 00:16:39 Cumulative 165.4 hours Start 2025.12.04 @ 09:42:15 End 2025.12.04 @ 09:54:36 Sessions 1 Manual Loads 0 Difficulty Explorer Special Mode None Game No. 223 Rogue 0 Adventurer 0 Explorer 223 Win Type - Total 0 Types 0/0/0/0/0/0/0/0/0/0 Lore% 70 Gallery% 66 Achievement% 52 Wizard Run 0 Options --------- Layout 1 ASCII 0 Keyboard 0 Movement Mouse Keybinds 0 Fullscreen 1 Font 24/Smallcaps Map View 50x35 Zoom Use 0% Tactical HUD 1 Map Filters NONE Filters NONE Steam 1 RUN: a0b4bda6-056c-41eb-9ed3-69b9d4b639a3